Cogmind - Beta 14 @@@ ROGUE MODE // 2024.12.31 @ 08:36:15 Player: Demo Result: Destroyed by C6-EKI(R) with Subdweller Beam Cannon Performance ------------- Evolutions (0) 0 Regions Visited (3) 600 Robots Destroyed (21) 105 Value Destroyed (597) 597 Prototype IDs (1) 20 Alien Tech Used (0) 0 Bonus (0) 0 TOTAL SCORE: 1322 Bonus ------- None Cogmind --------- Core Integrity 0/250 Matter 285/300 Energy 100/100 System Corruption 0% Temperature Cool (9) Movement Rolling (110) Location -10/Subcaves Parts ------- > --- POWER (1) -------- (None) > --- PROPULSION (2) --- Subdweller Monowheel > --- UTILITY (2) ------ Small Storage Unit Signal Interpreter > --- WEAPON (2) ------- Barrage Gun Rocket Launcher > --- INVENTORY (8) ---- Light Treads Improved Terrain Scanner Hacking Suite Subdweller Beam Cannon Battle Cannon Grenade Launcher Ripper Peak State ------------ > --- POWER ------------ Subdweller Power Source > --- PROPULSION ------- Subdweller Monowheel Subdweller Monowheel > --- UTILITY ---------- Small Storage Unit Signal Interpreter > --- WEAPON ----------- Barrage Gun Rocket Launcher > --- INVENTORY -------- Light Treads Improved Terrain Scanner Hacking Suite Subdweller Beam Cannon Grenade Launcher Ripper [Rating: 14] Favorites ----------- Power Subdweller Power Source Engine Subdweller Power Source Propulsion Light Treads Treads Light Treads Wheel Subdweller Monowheel Utility Signal Interpreter Device Improved Terrain Scanner Storage Small Storage Unit Processor Signal Interpreter Weapon Barrage Gun Energy Gun Small Laser Ballistic Gun Barrage Gun Launcher Rocket Launcher Build | -11 -10 -10 -10 ------- Run | Yrd Mat Min Sub Slots Evolved . | . . . . Power . | . . . . Propulsion . | . . . . Utility . | . . . . Weapon . | . . . . Parts Attached 21 | 4 2 4 11 Power 1 | . . . 1 Engine 1 | . . . 1 Core . | . . . . Reactor . | . . . . Propulsion 5 | 2 . . 3 Treads 2 | 2 . . . Leg . | . . . . Wheel 3 | . . . 3 Hover . | . . . . Flight . | . . . . Utility 3 | 1 1 . 1 Device 1 | 1 . . . Storage 1 | . . . 1 Processor 1 | . 1 . . Hackware . | . . . . Protection . | . . . . Artifact . | . . . . Weapon 12 | 1 1 4 6 Energy Gun 4 | 1 . 2 1 Energy Cannon . | . . . . Ballistic Gun 5 | . 1 1 3 Ballistic Cannon . | . . . . Launcher 3 | . . 1 2 Special Weapon . | . . . . Impact Weapon . | . . . . Slashing Weapon . | . . . . Piercing Weapon . | . . . . Special Melee Weapon . | . . . . Unidentified Prototypes 1 | . 1 . . Parts Lost 4 | . . 1 3 Power 1 | . . . 1 Propulsion 2 | . . . 2 Utility . | . . . . Weapon 1 | . . 1 . Highest Loss Streak 1 | . . 1 1 To Critical Strikes . | . . . . Average Slot Usage (%) 89 | . 67 81 94 Engine 6 | . . . 9 Treads 10 | . 28 28 3 Wheel 16 | . . . 23 Device 5 | . 14 14 2 Storage 8 | . . . 11 Processor 13 | . 10 14 14 Energy Gun 11 | . 14 13 11 Ballistic Gun 9 | . . 7 11 Launcher 4 | . . 3 5 Peak Build Rating 14 | 6 10 10 14 Average Rating 10 | 2 6 8 11 On Entrance 5 | . 6 7 9 Naked Turns . | . . . . Heaviest Build 18 | 3 3 6 18 Greatest Support 30 | 3 3 3 30 Greatest Overweight (x) 1 | . . 1 1 Average Overweight (x) . | . . . . Largest Inventory Capacity 8 | 5 5 5 8 Average Capacity 6 | 5 5 5 7 Most Carried 8 | 5 5 5 8 Average Carried 6 | 3 4 4 7 Final Capacity 8 | 5 5 5 8 Final Carried 7 | 5 5 5 7 Class Distribution -------------------- 94% | Mutant 5% | Derelict-Mutant Dominant Class ---------------- Mutant | -10/Materials Mutant | -10/Mines Mutant | -10/Subcaves Resources | -11 -10 -10 -10 ----------- Run | Yrd Mat Min Sub Matter Collected 750 | 110 33 189 418 Remotely . | . . . . Salvage Created 750 | 182 33 182 353 Parts 40 | 13 5 12 10 Haulers Intercepted . | . . . . Recyclers Shooed 1 | . . 1 . Parts Field Recycled . | . . . . Retrieved Matter . | . . . . Parts Self-Destructed 3 | . . . 3 Prevented . | . . . . Kills | -11 -10 -10 -10 ------- Run | Yrd Mat Min Sub Combat Hostiles Destroyed 14 | . . 4 10 Guns 6 | . . 4 2 AOE 8 | . . . 8 Classes Destroyed 9 | 2 2 1 4 Tunneler 4 | 4 . . . Recycler 1 | 1 . . . Operator 1 | . 1 . . Watcher 1 | . 1 . . Swarmer 1 | . . . 1 Grunt 5 | . . 4 1 Sentry 1 | . . . 1 Artisan 1 | . . . 1 Subdweller 7 | . . . 7 Best Kill Streak 5 | 5 2 2 3 Combat Bots Only 3 | . . 2 3 Max Kills in Single Turn 1 | 1 1 1 1 Gunslinging . | . . . . Exploded 1 | . . . 1 Melee . | . . . . Uniques/NPCs Destroyed . | . . . . Combat | -11 -10 -10 -10 -------- Run | Yrd Mat Min Sub Hostile Shots Fired 50 | . 1 28 21 Missed 8 | . 1 4 3 Damage Taken 825 | 32 . 366 427 Core 262 | . . 111 151 Absorbed by Shields . | . . . . Core Remaining (%) 100 | 100 . . . Volleys Fired 81 | 16 3 26 36 Largest 2 | 1 1 2 2 Hottest 93 | 40 40 70 93 Shots Fired 113 | 16 3 39 55 Gun 90 | 16 3 34 37 Cannon . | . . . . Launcher 23 | . . 5 18 Special . | . . . . Kinetic 35 | . . 18 17 Thermal 24 | . . 4 20 Explosive 23 | . . 5 18 Electromagnetic 31 | 16 3 12 . Robot Hit Streak 18 | 6 2 18 6 Robot Miss Streak 4 | 4 1 1 2 Penetration Max . | . . . . Secondary Targets . | . . . . Shots Hit Robots 61 | 9 2 30 20 Core Hits 42 | 6 2 11 23 Critical Kills . | . . . . Critical Parts Destroyed . | . . . . Critical Strikes . | . . . . Melee Attacks . | . . . . Impact . | . . . . Slashing . | . . . . Piercing . | . . . . Sneak Attacks . | . . . . Combat Hostiles . | . . . . Follow-up Attacks . | . . . . Damage Inflicted 1746 | 194 77 468 1007 Guns 779 | 119 38 407 215 Cannons . | . . . . Explosions 967 | 75 39 61 792 Melee . | . . . . Ramming . | . . . . Kinetic 338 | . . 251 87 Thermal 264 | 75 39 22 128 Explosive 853 | . . 61 792 Electromagnetic 291 | 119 38 134 . Impact . | . . . . Slashing . | . . . . Piercing . | . . . . Highest Corruption . | . . . . Average Corruption . | . . . . Corruption Purged . | . . . . Corruption Blocked . | . . . . Overload Shots . | . . . . Overflow Damage . | . . . . Projectiles . | . . . . Explosions . | . . . . Melee . | . . . . Knockbacks . | . . . . Impact . | . . . . Kinetic . | . . . . Secondary . | . . . . Self-Inflicted Damage 129 | 32 . 48 49 Shots 5 | 1 . 2 2 Rammed . | . . . . Targets Rammed . | . . . . Kicked . | . . . . Crushed . | . . . . Highest Temperature 41 | 7 . 41 16 Average Temperature 17 | 4 . 20 7 Received Heat Transfer 279 | . . 201 78 Siege Activations . | . . . . Robots Corrupted . | . . . . Combat Hostiles . | . . . . Parts Fried 1 | . . 1 . Impact Corruptions . | . . . . Robots Melted . | . . . . Combat Hostiles . | . . . . Parts Melted . | . . . . Heat Transferred 350 | 100 . 50 200 Parts Sabotaged . | . . . . Parts Stolen . | . . . . Parts Stripped . | . . . . Power Chain Reactions 2 | 1 1 . . Alert | -11 -10 -10 -10 ------- Run | Yrd Mat Min Sub Peak Influence 161 | 25 66 161 . Initial 25 | . 16 25 . Average 81 | 8 52 109 . Maximum Alert Level . | . . . . Low Security (%) 100 | 100 100 100 . Level 1 . | . . . . Level 2 . | . . . . Level 3 . | . . . . Level 4 . | . . . . Level 5 . | . . . . High Security . | . . . . Max Security . | . . . . Squads Dispatched . | . . . . Investigation . | . . . . Extermination . | . . . . Reinforcement . | . . . . Assault . | . . . . Garrison . | . . . . Intercept . | . . . . Searches Triggered . | . . . . Construction Impeded . | . . . . Haulers Reinforced . | . . . . Active Scanning Responses . | . . . . Cargo Convoy Interrupts . | . . . . Stealth | -11 -10 -10 -10 --------- Run | Yrd Mat Min Sub Distress Signals . | . . . . Communications Jammed . | . . . . Distress Signals . | . . . . Times Spotted 19 | . 5 3 11 Peak Tracking Total 3 | . 1 2 3 Tactical Retreats . | . . . . Traps | -11 -10 -10 -10 ------- Run | Yrd Mat Min Sub Traps Triggered . | . . . . Indirectly . | . . . . Trap Hack Attempts . | . . . . Triggered . | . . . . Disarmed . | . . . . Reprogrammed . | . . . . Reused . | . . . . Traps Extracted . | . . . . Installed . | . . . . Triggered . | . . . . Machines | -11 -10 -10 -10 ---------- Run | Yrd Mat Min Sub Machines Disabled . | . . . . Max in Single Turn . | . . . . Machines Repaired . | . . . . Machines Dismantled . | . . . . Machines Sabotaged . | . . . . Overloaded Fab Kills . | . . . . Hacking | -11 -10 -10 -10 --------- Run | Yrd Mat Min Sub Machines Accessed 3 | . 3 . . Terminals 3 | . 3 . . Fabricators . | . . . . Repair Stations . | . . . . Recycling Units . | . . . . Scanalyzers . | . . . . Garrison Access . | . . . . Total Hacks 6 | . 6 . . Successful 2 | . 2 . . Failed 4 | . 4 . . Catastrophic 1 | . 1 . . Database Lockouts . | . . . . Manual 3 | . 3 . . Terminals 6 | . 6 . . Fabricators . | . . . . Repair Stations . | . . . . Recycling Units . | . . . . Scanalyzers . | . . . . Garrison Access . | . . . . Terminal Hacks 2 | . 2 . . Branch Access Points 1 | . 1 . . Locate Traps 1 | . 1 . . Fabricator Hacks . | . . . . Repair Station Hacks . | . . . . Recycling Unit Hacks . | . . . . Scanalyzer . | . . . . Garrison Access Hacks . | . . . . Unauthorized Hacks . | . . . . Terminals . | . . . . Fabricators . | . . . . Repair Stations . | . . . . Recycling Units . | . . . . Scanalyzers . | . . . . Garrison Access . | . . . . Data Cores Recovered . | . . . . Used . | . . . . Hacking Detections 3 | . 3 . . Full Trace Events 1 | . 1 . . Feedback Events . | . . . . Feedback Blocked . | . . . . Robot Schematics Acquired . | . . . . Robots Built . | . . . . Authchips . | . . . . Time . | . . . . Total Robot Build Rating . | . . . . Part Schematics Acquired . | . . . . Parts Built . | . . . . Authchips . | . . . . Time . | . . . . Total Part Build Rating . | . . . . Parts Repaired . | . . . . Time . | . . . . Parts Recycled . | . . . . Recycled Matter . | . . . . Retrieved Matter . | . . . . Retrieved Components . | . . . . Parts Scanalyzed . | . . . . Part Schematics Acquired . | . . . . Parts Damaged . | . . . . Bothacking | -11 -10 -10 -10 ------------ Run | Yrd Mat Min Sub Used RIF Installer . | . . . . Robots Hacked . | . . . . Non-combat . | . . . . Combat . | . . . . Robot Hacks Applied . | . . . . Relay Couplers Released . | . . . . Fabnet Peak Effective % . | . . . . Robots Rewired . | . . . . Allies Hacked . | . . . . Hacks Repelled . | . . . . Allies | -11 -10 -10 -10 -------- Run | Yrd Mat Min Sub Total Allies . | . . . . Largest Group . | . . . . Highest-Rated Group . | . . . . Highest-Rated Ally . | . . . . Total Orders . | . . . . Ally Attacks . | . . . . Total Damage . | . . . . Kills . | . . . . Allies Corrupted . | . . . . Allies Melted . | . . . . Intel | -11 -10 -10 -10 ------- Run | Yrd Mat Min Sub Robot Analysis Total . | . . . . Derelict Logs Recovered 3 | . . 2 1 Drone Launches . | . . . . Drone Recoveries . | . . . . Exploration | -11 -10 -10 -10 ------------- Run | Yrd Mat Min Sub Turns Passed 1300 | 70 86 267 877 Spaces Moved 1204 | 50 137 250 767 Core 536 | 50 137 250 99 Treads . | . . . . Legs . | . . . . Wheels 668 | . . . 668 Hover . | . . . . Flight . | . . . . Fastest Speed 50 | 50 50 50 80 Average Speed 86 | 50 50 78 97 Slowest Speed 110 | 50 50 100 110 Overloaded Moves . | . . . . Propulsion Burnouts . | . . . . Robots Hopped . | . . . . Cave-ins Triggered . | . . . . Exploration Rate (%) 33 | 3 34 57 39 Regions Visited 3 Branch Regions 2 Pre-discovered Areas . | . . . . Known Exits Taken 2 | . 1 1 . Unknown Exits Taken 1 | 1 . . . Scrap Searched 12 | . . 1 11 Spaces Dug 41 | . . 16 25 Terrain Destroyed 146 | 1 4 38 103 Melee . | . . . . Projectile 1 | . . . 1 AOE 145 | 1 4 38 102 Terrain Rammed . | . . . . Walls Destroyed . | . . . . Machines Disabled . | . . . . Actions | -11 -10 -10 -10 --------- Run | Yrd Mat Min Sub Total 1358 | 77 152 283 846 Wait 14 | . 3 . 11 Move 1201 | 49 136 249 767 Hop . | . . . . Pick Up 24 | 8 3 2 11 Fast Attach 5 | 1 2 . 2 Attach 10 | 3 . 4 3 Detach 3 | . 1 2 . Swap 6 | . . . 6 Drop 14 | . 4 . 10 Fire 81 | 16 3 26 36 Melee . | . . . . Ram . | . . . . Kick . | . . . . Crush . | . . . . Escape Stasis . | . . . . Rewire . | . . . . Trap . | . . . . Miscellaneous . | . . . . Route ------- -11/Scrapyard -10/Materials (discovered 2 exits: *Mat / *Min) -10/Mines (discovered 2 exits: *Mat / *Sub) -10/Subcaves History --------- Turn | Location | Event 5 | -11/Scrapyard | Discovered new exit (range 15) 71 | -11/Scrapyard | Entered Materials 128 | -10/Materials | Identified exit to Mines 138 | -10/Materials | Discovered new exit (range 5) 140 | -10/Materials | Identified exit to Materials 157 | -10/Materials | Entered Mines 231 | -10/Mines | Learned Materials terminal intel 311 | -10/Mines | Build established: Mutant 324 | -10/Mines | Discovered exit to Materials (range 9) 344 | -10/Mines | Learned Materials non-interactive machine intel 360 | -10/Mines | Discovered new exit (range 10) 369 | -10/Mines | Identified exit to Subcaves 389 | -10/Mines | Received a Rocket Launcher from a helpful Derelict 424 | -10/Mines | Entered Subcaves 426 | -10/Subcaves | Shifting Twisted Machinery released Barrage Gun 558 | -10/Subcaves | Learned Materials trap positions 700 | -10/Subcaves | Shifting Twisted Machinery released Sub. Machine Gun 702 | -10/Subcaves | A swath of the cavern ceiling suddenly collapsed 802 | -10/Subcaves | Core integrity fell below 50% 882 | -10/Subcaves | Ambushed by Subdweller buried in earth 884 | -10/Subcaves | Ambushed by Subdweller buried in earth 952 | -10/Subcaves | Shifting Twisted Machinery released Ripper 967 | -10/Subcaves | Shifting Twisted Machinery released Sub. Monowheel 1094 | -10/Subcaves | Core integrity fell below 20% 1301 | -10/Subcaves | Destroyed by C6-EKI(R) with Subdweller Beam Cannon Last Messages --------------- 01178_ Sub. Power Source destroyed. 01179_ Y-45 Defender destroyed. 01181_ G-34 Mercenary destroyed. 01186_ Heat Sink fries itself beyond repair. 01190_ Acquired 6 matter. 01193_ Beam Rifle fries itself beyond repair. 01194_ Acquired 9 matter. 01199_ The unstable cave ceiling collapses. 01200_ Acquired 20 matter. 01201_ Acquired 4 matter. 01203_ The unstable cave ceiling collapses. 01210_ Acquired 9 matter. 01211_ Acquired 12 matter. 01243_ Acquired Battle Cannon. 01244_ Acquired 27 matter. 01251_ DH-3VN(u) cries out in pain. 01251_ DH-3VN(u) destroyed. 01256_ Acquired 8 matter. 01297_ Broken Sub. Monowheel destroyed. 01297_ J8-A29(R) destroyed. Map ----- +----------------------------------------------------+ | ?????????????????????????????????????????????????? | | ?????????????????????????????????????????????????? | | ?????????????????????????????????????????????????? | | ?????????????????????????????????????????????????? | | ?????????????????????????????????????????????????? | | ?????????????????????????????????????????????????? | | ?????????????????????????????????????????????????? | | ?????????????????????????????????????????????????? | | ?????????????????????????????????????????????????? | | ?????????????????????????????????? ??????????????? | | ???????????????????????????????? ????????????? | | ??????????????????????????????? ????????????? | | ??????????????????????????????? ????????????? | | ??????????????????????????????? #????????????? | | ???????????????# ?????????????? ###??????????? | | ???????????????# ?????????????# #??????????? | | ??????????????## ?????????????# #??????????? | | ????????????"#? ????????????# ##?????????? | | ????????????? ???????????# #?????????? | | ???????????? %? # ??#####????# #??????????? | | ??????????? R # ?# # ###### #???????????# | | ??????????? ?# #?????????### | | ??????????? ## ##????????# | | ??????????????????# # # ##???????# | | ??????????????????# ##### ######### | | ??????????????????## @ ^## ## ## | | ???????????????????# ## | | ???????????????????# ##### ### | | ??????????????????# ##???### #?### | | ????????????????? ##??????## #??## | | ??????????????? ^ ##????????# ??### | | ????????????? ??????????## ???## | | ????????????# ## ???????????#######???## | | ????????????? ## ?# ??????????????????????# | | ???????????????### ??# #??????????????????????## | | ?????????????????## ??##????????????????????????## | | ??????????????????#??????????????????????????????? | | ?????????????????????????????????????????????????? | | ?????????????????????????????????????????????????? | | ?????????????????????????????????????????????????? | | ?????????????????????????????????????????????????? | | ?????????????????????????????????????????????????? | | ?????????????????????????????????????????????????? | | ?????????????????????????????????????????????????? | | ?????????????????????????????????????????????????? | | ?????????????????????????????????????????????????? | | ?????????????????????????????????????????????????? | | ?????????????????????????????????????????????????? | | ?????????????????????????????????????????????????? | | ?????????????????????????????????????????????????? | +----------------------------------------------------+ Best States ------------- Heat Dissipation 25 Energy Generation 15 Energy Capacity 200 Matter Stores 300 Matter Capacity 300 Sight Range 16 Terrain Scan Range 16 Terrain Scan Density 10 Evasion (%) 50 Recoil Reduction 2 Item Schematics ----------------- None Robot Schematics ------------------ None Fabricated ------------ Nothing Alien Tech Used ----------------- None Achievements -------------- None Challenges ------------ None Game ------ Seed RagnarokAnalysisAmplifier Manual? 0 Play Time 00:14:36 Cumulative 100.4 hours Start 2024.12.31 @ 08:26:54 End 2024.12.31 @ 08:36:15 Sessions 1 Manual Loads 0 Difficulty Rogue Special Mode None Game No. 118 Rogue 118 Adventurer 0 Explorer 0 Win Type - Total 1 Types 1/0/0/0/0/0/0/0/0 Lore% 32 Gallery% 62 Achievement% 50 Wizard Run 0 Options --------- Layout 1 ASCII 0 Keyboard 0 Movement Numpad Keybinds 0 Fullscreen 1 Font 24/Smallcaps Map View 50x35 Zoom Use 0% Tactical HUD 1 Map Filters NONE Filters NONE Steam 1 RUN: 549cad4a-1673-44c7-a30c-4ef8fc085a20